[Event "CZE Extraliga 2021-22"]
[Site "Czech Republic"]
[Date "2021.10.17"]
[Round "2.7"]
[White "LYS14 Priehoda Vitezslav IM 22"]
[Black "OST10 Neumann Filip  2175"]
[Result "1-0"]
[ECO "E92"]
[WhiteElo "2268"]
[BlackElo "2175"]
[Annotator "NA"]
[PlyCount "93"]
[EventDate "2021.10.17"]
[EventCountry "CZE"]
[SourceTitle "playchess.com"]
[Source "ChessBase"]
[SourceQuality "1"]
[TimeControl "40/5400+30:1800+30"]

1. d4 {[%emt 0:00:03]} Nf6 {[%emt 0:00:06]} 2. Nf3 {[%emt 0:00:10]} g6 {[%emt 0:00:07]} 3. c4 {[%emt 0:00:06]} Bg7 {[%emt 0:00:10]} 4. Nc3 {[%emt 0:00:05]} O-O {[%emt 0:00:09]} 5. e4 {[%emt 0:00:04]} d6 {[%emt 0:00:07]} 6. Be2 {[%emt 0:00:20]} e5 {[%emt 0:00:07]} 7. d5 {[%emt 0:00:05]} a5 {[%emt 0:00:24]} 8. Be3 {[%emt 0:01:53]} Na6 {[%emt 0:00:47]} 9. Nd2 {[%emt 0:00:08]} Ne8 {[%emt 0:02:54]} 10. g4 {[%emt 0:09:29]} f5 {[%emt 0:04:45]} 11. gxf5 {[%emt 0:00:09]} gxf5 {[%emt 0:00:08]} 12. exf5 {[%emt 0:00:06]} Bxf5 {[%emt 0:00:55]} 13. Nde4 {[%emt 0:05:57]} Nf6 {[%emt 0:12:13]} 14. Nxf6+ {[%emt 0:19:40]} Qxf6 {[%emt 0:01:47]} 15. Qd2 {[%emt 0:00:20]} Nb4 {[%emt 0:09:30]} 16. O-O-O {[%emt 0:08:14]} Bg6 {[%emt 0:00:26]} 17. Rhg1 {[%emt 0:04:12]} Qf5 {[%emt 0:02:04]} 18. Rxg6 {[%emt 0:00:09]} Qxg6 {[%emt 0:00:34]} 19. a3 {[%emt 0:00:30]} e4 {[%emt 0:05:26]} 20. axb4 {[%emt 0:06:56]} axb4 {[%emt 0:00:06]} 21. Nb1 {[%emt 0:06:04]} Ra2 {[%emt 0:00:27]} 22. Qxb4 {[%emt 0:05:12]} Bxb2+ {[%emt 0:03:01]} 23. Qxb2 {[%emt 0:00:11]} Rxb2 {[%emt 0:00:06]} 24. Kxb2 {[%emt 0:00:07]} Qg2 {[%emt 0:01:35]} 25. Nc3 {[%emt 0:04:07]} Rxf2 {[%emt 0:00:18]} 26. Bxf2 {[%emt 0:00:30]} Qxf2 {[%emt 0:00:30]} 27. h3 {[%emt 0:00:30]} Qe3 {[%emt 0:00:30]} 28. h4 {[%emt 0:00:30]} Kf7 {[%emt 0:00:30]} 29. h5 {[%emt 0:00:30]} Kf6 {[%emt 0:00:30]} 30. Rh1 {[%emt 0:00:30]} Ke5 {[%emt 0:00:30]} 31. Rh4 {[%emt 0:00:30]} Qd2+ {[%emt 0:11:59]} 32. Kb3 {[%emt 0:08:21]} e3 {[%emt 0:02:22]} 33. Re4+ {[%emt 0:00:05]} Kf6 {[%emt 0:00:49]} 34. Re6+ {[%emt 0:01:55]} Kf5 {[%emt 0:01:18]} 35. Re7 {[%emt 0:00:29]} h6 {[%emt 0:01:24]} 36. Rxc7 {[%emt 0:04:32]} b6 {[%emt 0:00:23]} 37. Rf7+ {[%emt 0:01:40]} Ke5 {[%emt 0:00:11]} 38. Re7+ {[%emt 0:00:05]} Kf5 {[%emt 0:00:52]} 39. Re6 {[%emt 0:00:06]} Qc1 {[%emt 0:01:27]} 40. Rxd6 {[%emt 0:05:14]} b5 {[%emt 0:00:13]} 41. cxb5 {[%emt 0:30:29]} Ke5 {[%emt 0:30:07]} 42. Re6+ {[%emt 0:00:05]} Kd4 {[%emt 0:00:08]} 43. Re4+ {[%emt 0:00:05]} Kc5 {[%emt 0:00:12]} 44. Rc4+ {[%emt 0:00:01]} Kb6 {[%emt 0:00:13]} 45. Na4+ {[%emt 0:00:02]} Ka5 {[%emt 0:00:09]} 46. Nc3 {[%emt 0:00:16]} Qa1 {[%emt 0:01:57]} 47. d6 {[%emt 0:05:08]} 1-0

[Event "CZE Extraliga 2021-22"]
[Site "Czech Republic"]
[Date "2021.10.17"]
[Round "2.7"]
[White "Pribyl, Josef"]
[Black "Jasny, Stanislav"]
[Result "1-0"]
[ECO "A45"]
[WhiteElo "2235"]
[BlackElo "2316"]
[Annotator "NA"]
[PlyCount "119"]
[EventDate "2021.10.17"]
[EventCountry "CZE"]
[SourceTitle "playchess.com"]
[Source "ChessBase"]
[SourceQuality "1"]
[TimeControl "40/5400+30:1800+30"]

1. d4 {[%emt 0:00:02]} Nf6 {[%emt 0:00:08]} 2. Bf4 {[%emt 0:01:25]} g6 {[%emt 0:00:27]} 3. Nc3 {[%emt 0:00:53]} d5 {[%emt 0:00:12]} 4. Nf3 {[%emt 0:00:19]} c6 {[%emt 0:01:04]} 5. e3 {[%emt 0:00:19]} Nh5 {[%emt 0:01:17]} 6. Bg5 {[%emt 0:00:42]} h6 {[%emt 0:00:12]} 7. Bh4 {[%emt 0:00:06]} Bg7 {[%emt 0:01:19]} 8. Be2 {[%emt 0:00:49]} Qb6 {[%emt 0:00:28]} 9. Na4 {[%emt 0:09:06]} Qa5+ {[%emt 0:00:57]} 10. c3 {[%emt 0:00:03]} Nd7 {[%emt 0:01:39]} 11. b4 {[%emt 0:03:10]} Qc7 {[%emt 0:00:40]} 12. g4 {[%emt 0:04:44]} Nhf6 {[%emt 0:05:03]} 13. Bg3 {[%emt 0:00:11]} Qd8 {[%emt 0:00:12]} 14. Nd2 {[%emt 0:03:33]} h5 {[%emt 0:25:19]} 15. g5 {[%emt 0:00:09]} Ne4 {[%emt 0:00:06]} 16. Nxe4 {[%emt 0:00:22]} dxe4 {[%emt 0:00:03]} 17. Qc2 {[%emt 0:07:16]} O-O {[%emt 0:12:55]} 18. O-O {[%emt 0:04:30]} e5 {[%emt 0:03:21]} 19. h4 {[%emt 0:00:40]} exd4 {[%emt 0:04:55]} 20. cxd4 {[%emt 0:00:03]} Qe7 {[%emt 0:00:41]} 21. Rab1 {[%emt 0:06:18]} Nb6 {[%emt 0:05:07]} 22. Qc5 {[%emt 0:08:39]} Qd8 {[%emt 0:00:59]} 23. Nc3 {[%emt 0:04:14]} Re8 {[%emt 0:04:02]} 24. Qd6 {[%emt 0:00:27]} Bd7 {[%emt 0:01:24]} 25. Rfc1 {[%emt 0:01:38]} Rc8 {[%emt 0:01:27]} 26. Qf4 {[%emt 0:07:46]} Bf5 {[%emt 0:05:09]} 27. Bxh5 {[%emt 0:02:24]} Nd5 {[%emt 0:01:28]} 28. Nxd5 {[%emt 0:01:21]} Qxd5 {[%emt 0:01:51]} 29. Bg4 {[%emt 0:12:25]} Bxg4 {[%emt 0:01:59]} 30. Qxg4 {[%emt 0:00:03]} Bf8 {[%emt 0:04:59]} 31. Rb3 {[%emt 0:01:43]} a6 {[%emt 0:00:44]} 32. Kg2 {[%emt 0:03:25]} Re6 {[%emt 0:01:29]} 33. Be5 {[%emt 0:01:57]} Bg7 {[%emt 0:02:04]} 34. Rc5 {[%emt 0:00:52]} Qd7 {[%emt 0:00:22]} 35. Qxe4 {[%emt 0:04:47]} Rce8 {[%emt 0:01:24]} 36. f4 {[%emt 0:06:22]} R6e7 {[%emt 0:00:51]} 37. Qf3 {[%emt 0:01:05]} Bxe5 {[%emt 0:01:03]} 38. fxe5 {[%emt 0:01:01]} Re6 {[%emt 0:00:04]} 39. Rb2 {[%emt 0:01:13]} Kg7 {[%emt 0:00:56]} 40. Rf2 {[%emt 0:00:59]} Rh8 {[%emt 0:01:15]} 41. Qe4 {[%emt 0:31:03]} Rh5 {[%emt 0:36:29]} 42. Rc1 {[%emt 0:02:02]} Re7 {[%emt 0:01:55]} 43. Rf6 {[%emt 0:01:19]} Rh7 {[%emt 0:01:03]} 44. Rcf1 {[%emt 0:00:00]} Kg8 {[%emt 0:00:00]} 45. Kg3 {[%emt 0:00:00]} Qe8 {[%emt 0:00:00]} 46. Rd6 {[%emt 0:00:00]} Rg7 {[%emt 0:00:00]} 47. Rff6 {[%emt 0:00:00]} Qb8 {[%emt 0:00:00]} 48. a4 {[%emt 0:00:00]} Qc7 {[%emt 0:00:00]} 49. Qf4 {[%emt 0:00:00]} Qc8 {[%emt 0:00:00]} 50. Qg4 {[%emt 0:00:00]} Qe8 {[%emt 0:00:00]} 51. e6 {[%emt 0:00:00]} Qb8 {[%emt 0:00:00]} 52. Qf4 {[%emt 0:00:00]} Qe8 {[%emt 0:00:00]} 53. exf7+ {[%emt 0:00:00]} Rgxf7 {[%emt 0:00:00]} 54. Kf2 {[%emt 0:00:00]} Rg7 {[%emt 0:00:00]} 55. Qf3 {[%emt 0:00:00]} a5 {[%emt 0:00:00]} 56. bxa5 {[%emt 0:00:00]} Qa8 {[%emt 0:00:00]} 57. a6 {[%emt 0:00:00]} bxa6 {[%emt 0:00:00]} 58. Qxc6 {[%emt 0:00:00]} Rb7 {[%emt 0:00:00]} 59. Rxg6 {[%emt 0:00:43]} Rbf7+ {[%emt 0:00:00]} 60. Kg3 1-0

[Event "CZE Extraliga 2021-22"]
[Site "Czech Republic"]
[Date "2021.10.17"]
[Round "2.8"]
[White "Kalod, Radek"]
[Black "Riha, Vojtech"]
[Result "0-1"]
[ECO "B31"]
[WhiteElo "2473"]
[BlackElo "2279"]
[Annotator "ChessBase"]
[PlyCount "112"]
[EventDate "2021.10.17"]
[EventCountry "CZE"]
[SourceTitle "playchess.com"]
[Source "ChessBase"]
[SourceQuality "1"]
[TimeControl "40/5400+30:1800+30"]

1. e4 {[%emt 0:00:03]} c5 {[%emt 0:00:22]} 2. Nf3 {[%emt 0:00:45]} Nc6 {[%emt 0:01:22]} 3. Bb5 {[%emt 0:00:29]} g6 {[%emt 0:00:45]} 4. c3 {[%emt 0:00:05]} Bg7 {[%emt 0:02:03]} 5. d4 {[%emt 0:00:21]} Qb6 {[%emt 0:05:31]} 6. Bxc6 {[%emt 0:01:33]} dxc6 {[%emt 0:00:47]} 7. h3 {[%emt 0:12:55]} Nf6 {[%emt 0:06:11]} 8. Qe2 {[%emt 0:03:41]} O-O {[%emt 0:06:29]} 9. O-O {[%emt 0:00:28]} cxd4 {[%emt 0:08:02]} 10. cxd4 {[%emt 0:00:24]} c5 {[%emt 0:00:50]} 11. d5 {[%emt 0:02:59]} e6 {[%emt 0:10:43]} 12. Nc3 {[%emt 0:00:58]} exd5 {[%emt 0:01:42]} 13. exd5 {[%emt 0:02:19]} Bf5 {[%emt 0:02:14]} 14. Rd1 {[%emt 0:43:01]} Rad8 {[%emt 0:06:36]} 15. Be3 {[%emt 0:09:46]} Rfe8 {[%emt 0:07:13]} 16. Rac1 {[%emt 0:00:53]} Bh6 {[%emt 0:19:11]} 17. Qd2 {[%emt 0:09:57]} Bxe3 {[%emt 0:02:52]} 18. fxe3 {[%emt 0:00:03]} c4 {[%emt 0:00:52]} 19. Nd4 {[%emt 0:02:37]} Bd3 {[%emt 0:02:09]} 20. b3 {[%emt 0:00:28]} Qc5 {[%emt 0:08:28]} 21. bxc4 {[%emt 0:06:04]} Bxc4 {[%emt 0:00:05]} 22. Qc2 {[%emt 0:01:02]} Bxd5 {[%emt 0:04:13]} 23. Qf2 {[%emt 0:00:03]} Qe7 {[%emt 0:01:17]} 24. Rf1 {[%emt 0:00:50]} Ne4 {[%emt 0:00:52]} 25. Nxd5 {[%emt 0:00:37]} Rxd5 {[%emt 0:00:15]} 26. Qf4 {[%emt 0:00:03]} Rc5 {[%emt 0:00:59]} 27. Rxc5 {[%emt 0:01:03]} Nxc5 {[%emt 0:00:09]} 28. Rf3 {[%emt 0:00:01]} Ne6 {[%emt 0:01:31]} 29. Qg4 {[%emt 0:01:00]} Nxd4 {[%emt 0:00:37]} 30. exd4 {[%emt 0:00:27]} Rd8 {[%emt 0:00:31]} 31. Qf4 {[%emt 0:00:34]} Kg7 {[%emt 0:00:33]} 32. h4 {[%emt 0:00:25]} Rd5 {[%emt 0:00:29]} 33. Kf2 {[%emt 0:00:32]} b5 {[%emt 0:00:35]} 34. g4 {[%emt 0:00:08]} h6 {[%emt 0:00:24]} 35. Kg3 {[%emt 0:00:49]} b4 {[%emt 0:00:30]} 36. Re3 {[%emt 0:00:30]} Qxh4+ {[%emt 0:00:30]} 37. Kxh4 {[%emt 0:00:31]} g5+ {[%emt 0:00:04]} 38. Qxg5+ {[%emt 0:00:33]} hxg5+ {[%emt 0:00:10]} 39. Kh5 {[%emt 0:00:02]} Rxd4 {[%emt 0:01:08]} 40. Kxg5 {[%emt 0:00:57]} Rd2 {[%emt 0:00:32]} 41. a3 {[%emt 0:30:29]} a5 {[%emt 0:02:46]} 42. axb4 {[%emt 0:00:00]} axb4 {[%emt 0:00:06]} 43. Rb3 {[%emt 0:00:00]} Rd4 {[%emt 0:00:51]} 44. Kf5 {[%emt 0:00:00]} Rc4 {[%emt 0:00:49]} 45. Rd3 {[%emt 0:00:00]} Rc5+ {[%emt 0:01:15]} 46. Ke4 {[%emt 0:00:00]} Kg6 {[%emt 0:00:43]} 47. Rd6+ {[%emt 0:00:00]} Kg5 {[%emt 0:04:05]} 48. Rd7 {[%emt 0:00:00]} Rc4+ {[%emt 0:01:53]} 49. Ke5 {[%emt 0:00:00]} Rf4 {[%emt 0:04:18]} 50. Rd1 {[%emt 0:00:00]} f6+ {[%emt 0:01:59]} 51. Ke6 {[%emt 0:00:00]} b3 {[%emt 0:04:44]} 52. Rd5+ {[%emt 0:00:00]} Kxg4 {[%emt 0:00:16]} 53. Rb5 {[%emt 0:00:00]} Rf3 {[%emt 0:00:25]} 54. Rb8 {[%emt 0:00:00]} f5 {[%emt 0:02:15]} 55. Ke5 {[%emt 0:00:00]} Re3+ {[%emt 0:00:56]} 56. Kd4 {[%emt 0:00:00]} f4 {[%emt 0:00:11]} 0-1

[Event "CZE Extraliga 2021-22"]
[Site "Czech Republic"]
[Date "2021.10.17"]
[Round "2.8"]
[White "FMA11 Vesselovsky Serguei IM 2"]
[Black "DPP19 Pachmann Ales FM 2293"]
[Result "1/2-1/2"]
[ECO "B30"]
[WhiteElo "2323"]
[BlackElo "2293"]
[Annotator "NA"]
[PlyCount "21"]
[EventDate "2021.10.17"]
[EventCountry "CZE"]
[SourceTitle "playchess.com"]
[Source "ChessBase"]
[SourceQuality "1"]
[TimeControl "40/5400+30:1800+30"]

1. e4 {[%emt 0:00:07]} c5 {[%emt 0:00:09]} 2. Nf3 {[%emt 0:01:40]} Nc6 {[%emt 0:00:15]} 3. c3 {[%emt 0:00:44]} e5 {[%emt 0:00:23]} 4. d4 {[%emt 0:04:50]} cxd4 {[%emt 0:00:55]} 5. cxd4 {[%emt 0:00:41]} exd4 {[%emt 0:00:11]} 6. Nxd4 {[%emt 0:02:00]} Nf6 {[%emt 0:00:11]} 7. Nc3 {[%emt 0:00:56]} Bb4 {[%emt 0:00:25]} 8. Nxc6 {[%emt 0:09:03]} dxc6 {[%emt 0:02:59]} 9. Qxd8+ {[%emt 0:15:07]} Kxd8 {[%emt 0:00:10]} 10. f3 {[%emt 0:02:00]} Be6 {[%emt 0:09:35]} 11. Be3 {[%emt 0:08:42]} 1/2-1/2

[Event "CZE Extraliga 2021-22"]
[Site "Czech Republic"]
[Date "2021.10.17"]
[Round "2.8"]
[White "Gnojek, Petr"]
[Black "Simek, Petr"]
[Result "1/2-1/2"]
[ECO "D37"]
[WhiteElo "2271"]
[BlackElo "2298"]
[Annotator "NA"]
[PlyCount "103"]
[EventDate "2021.10.17"]
[EventCountry "CZE"]
[SourceTitle "playchess.com"]
[Source "ChessBase"]
[SourceQuality "1"]
[TimeControl "40/5400+30:1800+30"]

1. d4 {[%emt 0:00:05]} Nf6 {[%emt 0:00:06]} 2. c4 {[%emt 0:00:08]} e6 {[%emt 0:00:05]} 3. Nf3 {[%emt 0:00:10]} d5 {[%emt 0:01:15]} 4. Nc3 {[%emt 0:00:16]} a6 {[%emt 0:01:21]} 5. cxd5 {[%emt 0:02:05]} exd5 {[%emt 0:00:07]} 6. Bg5 {[%emt 0:00:35]} Be6 {[%emt 0:00:09]} 7. e3 {[%emt 0:02:22]} Nbd7 {[%emt 0:00:14]} 8. Rc1 {[%emt 0:04:17]} c6 {[%emt 0:02:16]} 9. Bd3 {[%emt 0:00:24]} Bd6 {[%emt 0:00:18]} 10. O-O {[%emt 0:03:55]} O-O {[%emt 0:00:42]} 11. Ne2 {[%emt 0:07:59]} Qc7 {[%emt 0:23:35]} 12. Bf4 {[%emt 0:03:34]} Ne4 {[%emt 0:02:50]} 13. Nd2 {[%emt 0:15:37]} Nxd2 {[%emt 0:21:46]} 14. Qxd2 {[%emt 0:00:07]} Bg4 {[%emt 0:00:16]} 15. f3 {[%emt 0:03:46]} Bh5 {[%emt 0:00:08]} 16. Nc3 {[%emt 0:02:13]} Nb6 {[%emt 0:03:45]} 17. Bxd6 {[%emt 0:05:48]} Qxd6 {[%emt 0:00:06]} 18. b3 {[%emt 0:06:19]} Bg6 {[%emt 0:07:33]} 19. Bxg6 {[%emt 0:04:25]} hxg6 {[%emt 0:00:08]} 20. e4 {[%emt 0:00:32]} dxe4 {[%emt 0:00:20]} 21. fxe4 {[%emt 0:00:04]} c5 {[%emt 0:00:47]} 22. d5 {[%emt 0:04:23]} Nd7 {[%emt 0:00:11]} 23. Qe3 {[%emt 0:08:35]} Rae8 {[%emt 0:00:53]} 24. Rce1 {[%emt 0:00:46]} Re7 {[%emt 0:01:47]} 25. Re2 {[%emt 0:05:39]} Rfe8 {[%emt 0:00:41]} 26. Rfe1 {[%emt 0:00:06]} Re5 {[%emt 0:20:41]} 27. Qf3 {[%emt 0:04:06]} Nf6 {[%emt 0:00:30]} 28. Kf1 {[%emt 0:01:52]} Qe7 {[%emt 0:02:31]} 29. a4 {[%emt 0:03:21]} Nd7 {[%emt 0:06:07]} 30. Qd3 {[%emt 0:03:12]} Qd6 {[%emt 0:01:33]} 31. Nb1 {[%emt 0:03:53]} Rh5 {[%emt 0:00:39]} 32. Qg3 {[%emt 0:00:10]} Qxg3 {[%emt 0:02:05]} 33. hxg3 {[%emt 0:00:04]} Ne5 {[%emt 0:00:05]} 34. Kg1 {[%emt 0:00:59]} Rg5 {[%emt 0:00:24]} 35. Re3 {[%emt 0:00:55]} Ng4 {[%emt 0:00:46]} 36. Rd3 {[%emt 0:00:32]} Ne5 {[%emt 0:01:10]} 37. Rc3 {[%emt 0:00:29]} Nd7 {[%emt 0:00:17]} 38. Rce3 {[%emt 0:00:35]} Rge5 {[%emt 0:00:17]} 39. Nd2 {[%emt 0:01:46]} f5 {[%emt 0:00:26]} 40. Nc4 {[%emt 0:00:37]} Rxe4 {[%emt 0:00:17]} 41. Rxe4 {[%emt 0:30:03]} fxe4 {[%emt 0:05:34]} 42. Nd6 {[%emt 0:00:00]} Re5 {[%emt 0:00:13]} 43. Rxe4 {[%emt 0:00:00]} Rxe4 {[%emt 0:04:31]} 44. Nxe4 {[%emt 0:00:00]} b6 {[%emt 0:00:17]} 45. a5 {[%emt 0:00:00]} bxa5 {[%emt 0:02:23]} 46. Kf2 {[%emt 0:00:00]} Kf7 {[%emt 0:01:11]} 47. Ke3 {[%emt 0:00:00]} Ke7 {[%emt 0:04:47]} 48. Kd3 {[%emt 0:00:00]} Nb6 {[%emt 0:01:48]} 49. Nxc5 {[%emt 0:00:00]} Nxd5 {[%emt 0:07:29]} 50. Nxa6 {[%emt 0:00:00]} Nb6 {[%emt 0:00:11]} 51. Nc5 {[%emt 0:00:00]} Kf6 {[%emt 0:01:23]} 52. Ke4 {[%emt 0:00:00]} 1/2-1/2